fUST/lending_fUST_20250301
["ID","MTS","AMOUNT","RATE_DAILY","PERIOD"]
[354900722,1740803450960,-1856.322944,0.00040273,14]
[354900723,1740803450970,-1856.322944,0.00040273,14]
[354900724,1740803450980,-375.375274,0.00040273,14]
[354900725,1740803450989,-375.375274,0.00040273,14]
[354900726,1740803450998,-358.228782,0.00040273,14]
[354900727,1740803451008,-358.228782,0.00040273,14]
[354900728,1740803451018,-234.515658,0.00040273,14]
[354900729,1740803451028,-151.0,0.00040273,14]
[354900730,1740803451038,-590.158248,0.00040273,14]
[354900731,1740803451049,-234.515658,0.00040273,14]
[354900732,1740803451058,-590.158248,0.00040273,14]
[354900733,1740803451068,-151.0,0.00040273,14]
[354900734,1740803451077,-250.0,0.000403,30]
[354900735,1740803451087,-166.1,0.00040303,2]
[354900736,1740803451096,-550.0,0.00040303,2]
[354900737,1740803451106,-284.74405853,0.00040358,2]
[354900738,1740803451115,-605.0,0.00040358,2]
[354900739,1740803451124,-665.5,0.00040413,2]
[354900740,1740803451133,-4229.2,0.00040445,2]
[354900741,1740803451143,-1687.34,0.00040445,5]
[354900742,1740803451153,-2152.84,0.00040445,2]
[354900743,1740803451162,-1534.89,0.00040445,2]
[354900744,1740803451172,-1558.77,0.00040445,2]
[354900745,1740803451183,-500.0,0.00040445,2]
[354900746,1740803451192,-10201.3098525,0.00040447,2]
[354900747,1740803451202,-732.05,0.00040468,2]
[354900748,1740803451212,-805.255,0.00040523,2]
[354900749,1740803451221,-500.0,0.00040545,2]
[354900750,1740803451230,-850.63,0.00040545,2]
[354900751,1740803451240,-500.0,0.00040545,2]
[354900752,1740803451250,-548.28,0.00040545,2]
[354900753,1740803451259,-720.36,0.00040545,2]
[354900754,1740803451269,-871.86,0.00040545,2]
[354900755,1740803451279,-1325.53,0.00040545,2]
[354900756,1740803451288,-500.0,0.00040545,2]
[354900757,1740803451298,-500.0,0.00040545,2]
[354900758,1740803451308,-500.0,0.00040545,2]
[354900759,1740803451320,-500.0,0.00040545,2]
[354900760,1740803451331,-500.0,0.00040545,2]
[354900761,1740803451340,-678.73,0.00040545,2]
[354900762,1740803451350,-500.0,0.00040545,2]
[354900763,1740803451360,-2563.23,0.00040545,2]
[354900764,1740803451369,-2728.93,0.00040545,2]
[354900765,1740803451379,-584.61,0.00040545,2]
[354900766,1740803451389,-500.0,0.00040545,2]
[354900767,1740803451399,-500.0,0.00040545,2]
[354900768,1740803451408,-500.0,0.00040545,2]
[354900769,1740803451417,-3114.31,0.00040545,2]
[354900770,1740803451428,-502.03,0.00040545,2]
[354900771,1740803451437,-643.0,0.00040545,2]
[354900772,1740803451446,-1859.8,0.00040545,2]
[354900773,1740803451456,-1073.59,0.00040545,2]
[354900774,1740803451465,-500.0,0.00040545,2]
[354900775,1740803451475,-500.0,0.00040545,2]
[354900776,1740803451484,-650.09,0.00040545,2]
[354900777,1740803451494,-585.13,0.00040545,2]
[354900778,1740803451503,-500.0,0.00040545,2]
[354900779,1740803451513,-2135.35,0.00040545,2]
[354900780,1740803451523,-500.0,0.00040545,2]
[354900781,1740803451532,-540.61,0.00040545,2]
[354900782,1740803451542,-6533.75,0.00040545,2]
[354900783,1740803451552,-1944.15,0.00040545,2]
[354900784,1740803451561,-510.97,0.00040545,2]
[354900785,1740803451571,-2457.94,0.00040545,2]
[354900786,1740803451580,-500.0,0.00040545,2]
[354900787,1740803451589,-1143.0,0.00040545,2]
[354900788,1740803451599,-11697.6,0.00040545,2]
[354900789,1740803451608,-415.20473459,0.00040545,2]
[354900790,1740803451618,-18691.78,0.00040545,2]
[354900791,1740803451627,-839.02,0.00040545,2]
[354900792,1740803451636,-500.0,0.00040545,2]
[354900793,1740803451645,-500.0,0.00040545,2]
[354900794,1740803451655,-3559.27,0.00040545,2]
[354900795,1740803451664,-500.0,0.00040545,2]
[354900796,1740803451674,-2285.54,0.00040545,2]
[354900797,1740803451684,-6209.93,0.00040545,2]
[354900798,1740803451694,-500.0,0.00040545,2]
[354900799,1740803451703,-1172.59,0.00040545,2]
[354900800,1740803451712,-1176.44,0.00040545,2]
[354900801,1740803451722,-3470.69,0.00040545,2]
[354900802,1740803451731,-500.0,0.00040545,2]
[354900803,1740803451741,-1131.53,0.00040545,2]
[354900804,1740803451750,-520.11961642,0.00040545,2]
[354900805,1740803451759,-1772.77,0.00040545,2]
[354900806,1740803451769,-500.0,0.00040545,2]
[354900807,1740803451778,-1017.43,0.00040545,2]
[354900808,1740803451788,-2165.05,0.00040545,2]
[354900809,1740803451797,-1292.63,0.00040545,2]
[354900810,1740803451806,-949.19,0.00040545,2]
[354900811,1740803451815,-181.23774386,0.00040545,2]
[354900812,1740803451825,-500.0,0.00040545,2]
[354900813,1740803451834,-2365.8,0.00040545,2]
[354900814,1740803451844,-669.5,0.00040545,2]
[354900815,1740803451853,-609.25,0.00040545,2]
[354900816,1740803451862,-1699.91,0.00040545,2]
[354900817,1740803451872,-500.0,0.00040545,2]
[354900818,1740803451881,-500.0,0.00040545,2]
[354900819,1740803451890,-610.33,0.00040545,2]
[354900820,1740803451899,-581.76,0.00040545,2]
[354900821,1740803451909,-1794.47,0.00040545,2]
[354900822,1740803451918,-304.40893929,0.00040545,2]
[354900823,1740803451928,-686.98,0.00040545,2]
[354900824,1740803451937,-500.0,0.00040545,2]
[354900825,1740803451946,-500.0,0.00040545,2]
[354900826,1740803451955,-1867.18,0.00040545,2]
[354900827,1740803451965,-503.15627078,0.00040545,2]
[354900828,1740803451974,-723.9,0.00040545,2]
[354900829,1740803451984,-41264.73,0.00040545,2]
[354900830,1740803451993,-500.0,0.00040545,2]
[354900831,1740803452003,-772.66,0.00040545,2]
[354900832,1740803452011,-231.384318,0.00040545,14]
[354900833,1740803452021,-909.69,0.00040545,2]
[354900834,1740803452030,-4806.0,0.00040545,2]
[354900835,1740803452039,-231.384318,0.00040545,14]
[354900836,1740803452049,-540.9947673,0.00040545,2]
[354900837,1740803452058,-1782.32,0.00040545,2]
[354900838,1740803452067,-1945.53,0.00040545,2]
[354900839,1740803452078,-500.0,0.00040545,2]
[354900840,1740803452088,-500.0,0.00040545,2]
[354900841,1740803452097,-2683.39,0.00040545,2]
[354900842,1740803452107,-1062.1,0.00040545,2]
[354900843,1740803452116,-2632.65,0.00040545,2]
[354900844,1740803452125,-9364.82,0.00040545,2]
[354900845,1740803452134,-3326.42,0.00040545,2]
[354900846,1740803452143,-821.78,0.00040545,2]
[354900847,1740803452154,-2646.79,0.00040545,2]
[354900848,1740803452163,-641.42,0.00040545,2]
[354900849,1740803452172,-3352.65,0.00040545,2]
[354900850,1740803452182,-13507.68,0.00040545,2]
[354900851,1740803452192,-793.88,0.00040545,2]
[354900852,1740803452201,-1240.41,0.00040545,2]
[354900853,1740803452211,-1473.52,0.00040545,2]
[354900854,1740803452220,-1898.48,0.00040545,2]
[354900855,1740803452230,-685.23,0.00040545,2]
[354900856,1740803452240,-7916.33,0.00040545,2]
[354900857,1740803452250,-500.0,0.00040545,2]
[354900858,1740803452259,-245.78100725,0.00040545,2]
[354900859,1740803452270,-500.0,0.00040545,2]
[354900860,1740803452279,-667.16,0.00040545,2]
[354900861,1740803452288,-512.13468017,0.00040545,2]
[354900862,1740803452297,-500.0,0.00040545,2]
[354900863,1740803452313,-5557.91,0.00040545,2]
[354900864,1740803452322,-500.0,0.00040546,2]
[354900865,1740803452332,-575.05244896,0.00040546,2]
[354900866,1740803452342,-405.92986803,0.00040546,2]
[354900867,1740803452351,-500.0,0.00040546,2]
[354900868,1740803452361,-500.0,0.00040546,2]
[354900869,1740803452371,-509.14,0.00040546,2]
[354900870,1740803452381,-500.0,0.00040546,2]
[354900871,1740803452391,-500.0,0.00040546,2]
[354900872,1740803452401,-500.0,0.00040546,2]
[354900873,1740803452410,-500.0,0.00040546,2]
[354900874,1740803452419,-500.0,0.00040546,2]
[354900875,1740803452428,-1926.06,0.00040546,2]
[354900876,1740803452438,-500.0,0.00040546,2]
[354900877,1740803452446,-865.2,0.00040546,2]
[354900878,1740803452456,-500.0,0.00040546,2]
[354900879,1740803452466,-500.0,0.00040546,2]
[354900880,1740803452476,-504.62846197,0.00040546,2]
[354900881,1740803452485,-500.0,0.00040546,2]
[354900882,1740803452495,-500.0,0.00040546,2]
[354900883,1740803452504,-500.0,0.00040546,2]
[354900884,1740803452513,-530.16,0.00040546,2]
[354900885,1740803452523,-500.0,0.00040546,2]
[354900886,1740803452533,-500.0,0.00040546,2]
[354900887,1740803452541,-500.0,0.00040546,2]
[354900888,1740803452551,-500.0,0.00040546,2]
[354900889,1740803452560,-500.0,0.00040546,2]
[354900890,1740803452570,-500.0,0.00040546,2]
[354900891,1740803452579,-609.43,0.00040546,2]
[354900892,1740803452589,-500.0,0.00040546,2]
[354900893,1740803452599,-500.0,0.00040546,2]
[354900894,1740803452608,-500.0,0.00040546,2]
[354900895,1740803452617,-500.0,0.00040546,2]
[354900896,1740803452627,-714.81,0.00040546,2]
[354900897,1740803452637,-500.0,0.00040546,2]
[354900898,1740803452646,-500.0,0.00040546,2]
[354900899,1740803452655,-500.0,0.00040546,2]
[354900900,1740803452664,-500.0,0.00040546,2]
[354900901,1740803452674,-500.0,0.00040546,2]
[354900902,1740803452683,-1034.59,0.00040546,2]
[354900903,1740803452692,-1016.26,0.00040546,2]
[354900904,1740803452702,-173.954304,0.00040546,14]
[354900905,1740803452711,-500.0,0.00040546,2]
[354900906,1740803452849,-500.0,0.00040546,2]
[354900907,1740803452859,-500.0,0.00040546,2]
[354900908,1740803452868,-500.0,0.00040546,2]
[354900909,1740803452878,-512.28126613,0.00040546,2]
[354900910,1740803452887,-500.0,0.00040546,2]
[354900911,1740803452896,-759.87,0.00040546,2]
[354900912,1740803452908,-500.0,0.00040546,2]
[354900913,1740803452918,-500.0,0.00040546,2]
[354900914,1740803452927,-504.02431175,0.00040546,2]
[354900915,1740803452936,-500.0,0.00040546,2]
[354900916,1740803452946,-500.0,0.00040546,2]
[354900917,1740803452956,-647.46,0.00040546,2]
[354900918,1740803452965,-500.0,0.00040546,2]
[354900919,1740803452974,-500.0,0.00040546,2]
[354900920,1740803452983,-500.0,0.00040546,2]
[354900921,1740803452992,-500.0,0.00040546,2]
[354900922,1740803453001,-626.46,0.00040546,2]
[354900923,1740803453010,-500.0,0.00040546,2]
[354900924,1740803453019,-500.0,0.00040546,2]
[354900925,1740803453028,-500.0,0.00040546,2]
[354900926,1740803453037,-500.0,0.00040546,2]
[354900927,1740803453046,-500.0,0.00040546,2]
[354900928,1740803453055,-200.0,0.00040546,2]
[354900929,1740803453064,-500.0,0.00040546,2]
[354900930,1740803453073,-500.0,0.00040546,2]
[354900931,1740803453082,-500.0,0.00040546,2]
[354900932,1740803453091,-500.0,0.00040546,2]
[354900933,1740803453100,-589.59,0.00040546,2]
[354900934,1740803453109,-500.0,0.00040546,2]
[354900935,1740803453119,-500.0,0.00040546,2]
[354900936,1740803453129,-500.0,0.00040546,2]
[354900937,1740803453138,-500.0,0.00040546,2]
[354900938,1740803453147,-151.0,0.00040546,14]
[354900939,1740803453156,-500.0,0.00040546,2]
[354900940,1740803453165,-500.0,0.00040546,2]
[354900941,1740803453174,-1306.99,0.00040546,2]
[354900942,1740803453183,-504.88748835,0.00040546,2]
[354900943,1740803453192,-500.0,0.00040546,2]
[354900944,1740803453201,-683.51,0.00040546,2]
[354900945,1740803453211,-500.0,0.00040546,2]
[354900946,1740803453220,-500.0,0.00040546,2]
[354900947,1740803453229,-500.0,0.00040546,2]
[354900948,1740803453238,-545.17307275,0.00040546,2]
[354900949,1740803453247,-500.0,0.00040546,2]
[354900950,1740803453256,-500.0,0.00040546,2]
[354900951,1740803453265,-500.0,0.00040546,2]
[354900952,1740803453275,-779.58,0.00040546,2]
[354900953,1740803453284,-500.0,0.00040546,2]
[354900954,1740803453293,-572.68520995,0.00040546,2]
[354900955,1740803453304,-500.0,0.00040546,2]
[354900956,1740803453315,-500.0,0.00040546,2]
[354900957,1740803453324,-500.0,0.00040546,2]
[354900958,1740803453332,-646.1594426,0.00040546,2]
[354900959,1740803453341,-500.0,0.00040546,2]
[354900960,1740803453352,-151.0,0.00040546,14]
[354900961,1740803453360,-738.36,0.00040546,2]
[354900962,1740803453370,-151.0,0.00040546,14]
[354900963,1740803453380,-231.467165,0.00040546,14]
[354900964,1740803453392,-158.747667,0.00040546,14]
[354900965,1740803453402,-500.0,0.00040546,2]
[354900966,1740803453411,-500.0,0.00040546,2]
[354900967,1740803453421,-500.0,0.00040546,2]
[354900968,1740803453430,-231.467165,0.00040546,14]
[354900969,1740803453440,-158.747667,0.00040546,14]
[354900970,1740803453449,-745.93,0.00040546,2]
[354900971,1740803453459,-501.83871337,0.00040546,2]
[354900972,1740803453470,-994.46,0.00040546,2]
[354900973,1740803453481,-151.0,0.00040546,14]
[354900974,1740803453491,-402.94456754,0.00040546,2]
[354900975,1740803453502,-500.0,0.00040546,2]
[354900976,1740803453511,-624.04,0.00040546,2]
[354900977,1740803453521,-523.77745751,0.00040546,2]
[354900978,1740803453531,-838.156336,0.00040546,14]
[354900979,1740803453540,-985.43,0.00040546,2]
[354900980,1740803453551,-500.0,0.00040546,2]
[354900981,1740803453561,-838.156336,0.00040546,14]
[354900982,1740803453570,-501.94827836,0.00040546,2]
[354900983,1740803453579,-503.73344001,0.00040546,2]
[354900984,1740803453589,-1177.84,0.00040546,2]
[354900985,1740803453598,-500.0,0.00040546,2]
[354900986,1740803453607,-500.0,0.00040546,2]
[354900987,1740803453617,-2010.16,0.00040546,2]
[354900988,1740803453626,-1861.99,0.00040546,2]
[354900989,1740803453635,-500.0,0.00040546,2]
[354900990,1740803453645,-500.0,0.00040546,2]
[354900991,1740803453655,-500.0,0.00040546,2]
[354900992,1740803453665,-1436.05,0.00040546,2]
[354900993,1740803453675,-646.99,0.00040546,2]
[354900994,1740803453684,-509.14059452,0.00040546,2]
[354900995,1740803453694,-500.0,0.00040546,2]
[354900996,1740803453703,-191.476866,0.00040546,14]
[354900997,1740803453713,-579.07,0.00040546,2]
[354900998,1740803453722,-500.0,0.00040546,2]
[354900999,1740803453732,-1339.27,0.00040546,2]
[354901000,1740803453741,-677.4,0.00040546,2]
[354901001,1740803453751,-191.476866,0.00040546,14]
[354901002,1740803453760,-506.9991282,0.00040546,2]
[354901003,1740803453770,-500.0,0.00040546,2]
[354901004,1740803453779,-500.0,0.00040546,2]
[354901005,1740803453789,-500.0,0.00040546,2]
[354901006,1740803453798,-807.03,0.00040546,2]
[354901007,1740803453809,-501.96018849,0.00040546,2]
[354901008,1740803453818,-1844.65,0.00040546,2]
[354901009,1740803453827,-902.45,0.00040546,2]
[354901010,1740803453836,-500.0,0.00040546,2]
[354901011,1740803453846,-500.0,0.00040546,2]
[354901012,1740803453855,-500.0,0.00040546,2]
[354901013,1740803453866,-1096.51,0.00040546,2]
[354901014,1740803453879,-500.0,0.00040546,2]
[354901015,1740803453888,-1817.75,0.00040546,2]
[354901016,1740803453898,-1973.46,0.00040546,2]
[354901017,1740803453909,-500.0,0.00040546,2]
[354901018,1740803453920,-500.0,0.00040546,2]
[354901019,1740803453932,-1052.03,0.00040546,2]
[354901020,1740803453943,-1508.76,0.00040546,2]
[354901021,1740803453954,-157.660582,0.00040546,14]
[354901022,1740803453964,-157.660582,0.00040546,14]
[354901023,1740803453974,-500.0,0.00040546,2]
[354901024,1740803453984,-500.0,0.00040546,2]
[354901025,1740803453994,-500.0,0.00040546,2]
[354901026,1740803454004,-500.0,0.00040546,2]
[354901027,1740803454014,-1296.68,0.00040546,2]
[354901028,1740803454024,-500.0,0.00040546,2]
[354901029,1740803454034,-500.0,0.00040546,2]
[354901030,1740803454044,-500.0,0.00040546,2]
[354901031,1740803454053,-500.0,0.00040546,2]
[354901032,1740803454063,-720.03,0.00040546,2]
[354901033,1740803454072,-500.0,0.00040546,2]
[354901034,1740803454081,-500.0,0.00040546,2]
[354901035,1740803454090,-905.94,0.00040546,2]
[354901036,1740803454100,-500.0,0.00040546,2]
[354901037,1740803454109,-500.0,0.00040546,2]
[354901038,1740803454119,-500.0,0.00040546,2]
[354901039,1740803454129,-592.41,0.00040546,2]
[354901040,1740803454138,-824.79,0.00040546,2]
[354901041,1740803454147,-500.0,0.00040546,2]
[354901042,1740803454157,-500.0,0.00040546,2]
[354901043,1740803454166,-500.0,0.00040546,2]
[354901044,1740803454175,-673.94,0.00040546,2]
[354901045,1740803454185,-1160.58,0.00040546,2]
[354901046,1740803454194,-151.0,0.00040546,14]
[354901047,1740803454204,-501.9560277,0.00040546,2]
[354901048,1740803454213,-500.0,0.00040546,2]
[354901049,1740803454223,-500.0,0.00040546,2]
[354901050,1740803454232,-500.0,0.00040546,2]
[354901051,1740803454242,-500.0,0.00040546,2]
[354901052,1740803454252,-672.18,0.00040546,2]
[354901053,1740803454261,-2631.34,0.00040546,2]
[354901054,1740803454270,-500.0,0.00040546,2]
[354901055,1740803454279,-547.15,0.00040546,2]
[354901056,1740803454289,-668.56,0.00040546,2]
[354901057,1740803454299,-500.0,0.00040546,2]
[354901058,1740803454309,-500.0,0.00040546,2]
[354901059,1740803454322,-500.0,0.00040546,2]
[354901060,1740803454331,-500.0,0.00040546,2]
[354901061,1740803454341,-500.0,0.00040546,2]
[354901062,1740803454350,-500.0,0.00040546,2]
[354901063,1740803454359,-500.0,0.00040546,2]
[354901064,1740803454369,-500.0,0.00040546,2]
[354901065,1740803454378,-500.0,0.00040546,2]
[354901066,1740803454389,-511.3805039,0.00040546,2]
[354901067,1740803454398,-500.0,0.00040546,2]
[354901068,1740803454408,-500.0,0.00040546,2]
[354901069,1740803454417,-1000.0,0.00040546,60]
[354901070,1740803454426,-500.0,0.00040546,2]
[354901071,1740803454436,-500.0,0.00040546,2]
[354901072,1740803454445,-500.0,0.00040546,2]
[354901073,1740803454455,-500.0,0.00040546,2]
[354901074,1740803454464,-500.0,0.00040546,2]
[354901075,1740803454474,-500.0,0.00040546,2]
[354901076,1740803454484,-1967.26,0.00040546,2]
[354901077,1740803454493,-500.0,0.00040546,2]
[354901078,1740803454503,-500.0,0.00040546,2]
[354901079,1740803454512,-151.0,0.00040546,14]
[354901080,1740803454521,-1420.27,0.00040546,2]
[354901081,1740803454531,-500.0,0.00040546,2]
[354901082,1740803454540,-500.0,0.00040546,2]
[354901083,1740803454550,-500.0,0.00040546,2]
[354901084,1740803454559,-500.0,0.00040546,2]
[354901085,1740803454568,-1462.88,0.00040546,2]
[354901086,1740803454579,-500.0,0.00040546,2]
[354901087,1740803454588,-500.0,0.00040546,2]
[354901088,1740803454597,-500.0,0.00040546,2]
[354901089,1740803454606,-500.0,0.00040546,2]
[354901090,1740803454615,-500.0,0.00040546,2]
[354901091,1740803454624,-1079.14,0.00040546,2]
[354901092,1740803454633,-500.0,0.00040546,2]
[354901093,1740803454642,-812.665492,0.00040546,14]
[354901094,1740803454651,-529.47,0.00040546,2]
[354901095,1740803454660,-500.0,0.00040546,2]
[354901096,1740803454669,-836.65,0.00040546,2]
[354901097,1740803454678,-564.39,0.00040546,2]
[354901098,1740803454688,-500.0,0.00040546,2]
[354901099,1740803454696,-500.0,0.00040546,2]
[354901100,1740803454706,-878.759832,0.00040546,14]
[354901101,1740803454715,-878.759832,0.00040546,14]
[354901102,1740803454724,-500.0,0.00040546,2]
[354901103,1740803454733,-529.58,0.00040546,2]
[354901104,1740803454742,-500.0,0.00040546,2]
[354901105,1740803454751,-500.0,0.00040546,2]
[354901106,1740803454760,-500.0,0.00040546,2]
[354901107,1740803454769,-187.77379486,0.00040546,2]
[354901108,1740803454779,-500.0,0.00040546,2]
[354901109,1740803454788,-500.0,0.00040546,2]
[354901110,1740803454915,-500.0,0.00040546,2]
[354901111,1740803454925,-392.36611113,0.00040546,2]
[354901112,1740803454934,-500.0,0.00040546,2]
[354901113,1740803454944,-952.92,0.00040546,2]
[354901114,1740803454953,-811.97,0.00040546,2]
[354901115,1740803454962,-500.0,0.00040546,2]
[354901116,1740803454971,-500.0,0.00040546,2]
[354901117,1740803454981,-500.0,0.00040546,2]
[354901118,1740803454990,-500.0,0.00040546,2]
[354901119,1740803454999,-500.0,0.00040546,2]
[354901120,1740803455008,-500.0,0.00040546,2]
[354901121,1740803455017,-500.0,0.00040546,2]
[354901122,1740803455026,-374.68078874,0.00040546,2]
[354901123,1740803455036,-2500.008198,0.00040546,14]
[354901124,1740803455045,-1187.18,0.00040546,2]
[354901125,1740803455054,-500.0,0.00040546,2]
[354901126,1740803455063,-500.0,0.00040546,2]
[354901127,1740803455073,-501.76,0.00040546,2]
[354901128,1740803455082,-2500.008198,0.00040546,14]
[354901129,1740803455091,-500.0,0.00040546,2]
[354901130,1740803455100,-1810.97,0.00040546,2]
[354901131,1740803455109,-1472.87,0.00040546,2]
[354901132,1740803455119,-500.0,0.00040546,2]
[354901133,1740803455128,-503.13327549,0.00040546,2]
[354901134,1740803455137,-668.98,0.00040546,2]
[354901135,1740803455146,-948.69,0.00040546,2]
[354901136,1740803455155,-500.0,0.00040546,2]
[354901137,1740803455164,-500.0,0.00040546,2]
[354901138,1740803455173,-174.723508,0.00040546,14]
[354901139,1740803455183,-500.0,0.00040546,2]
[354901140,1740803455192,-599.09500389,0.00040546,2]
[354901141,1740803455201,-1057.25,0.00040546,2]
[354901142,1740803455210,-500.0,0.00040546,2]
[354901143,1740803455220,-174.723508,0.00040546,14]
[354901144,1740803455229,-1375.96,0.00040546,2]
[354901145,1740803455238,-500.0,0.00040546,2]
[354901146,1740803455247,-722.851103,0.00040546,14]
[354901147,1740803455256,-722.851103,0.00040546,14]
[354901148,1740803455265,-500.0,0.00040546,2]
[354901149,1740803455274,-642.22051727,0.00040546,2]
[354901150,1740803455283,-500.0,0.00040546,2]
[354901151,1740803455293,-500.0,0.00040546,2]
[354901152,1740803455303,-500.0,0.00040546,2]
[354901153,1740803455313,-970.44,0.00040546,2]
[354901154,1740803455322,-673.76,0.00040546,2]
[354901155,1740803455331,-500.0,0.00040546,2]
[354901156,1740803455341,-500.0,0.00040546,2]
[354901157,1740803455351,-615.80236531,0.00040546,2]
[354901158,1740803455360,-1062.49,0.00040546,2]
[354901159,1740803455369,-529.53258417,0.00040546,2]
[354901160,1740803455379,-1856.322944,0.00040546,14]
[354901161,1740803455389,-500.0,0.00040546,2]
[354901162,1740803455399,-500.0,0.00040546,2]
[354901163,1740803455408,-1856.322944,0.00040546,14]
[354901164,1740803455418,-500.0,0.00040546,2]
[354901165,1740803455428,-375.375274,0.00040546,14]
[354901166,1740803455438,-500.0,0.00040546,2]
[354901167,1740803455447,-500.0,0.00040546,2]
[354901168,1740803455456,-375.375274,0.00040546,14]
[354901169,1740803455465,-500.0,0.00040546,2]
[354901170,1740803455475,-500.0,0.00040546,2]
[354901171,1740803455484,-678.02,0.00040546,2]
[354901172,1740803455494,-500.0,0.00040546,2]
[354901173,1740803455503,-500.0,0.00040546,2]
[354901174,1740803455512,-555.13,0.00040546,2]
[354901175,1740803455521,-358.228782,0.00040546,14]
[354901176,1740803455531,-493.2916647,0.00040546,2]
[354901177,1740803455541,-506.8324745,0.00040546,2]
[354901178,1740803455550,-3413.25,0.00040546,2]
[354901179,1740803455559,-500.0,0.00040546,2]
[354901180,1740803455568,-358.228782,0.00040546,14]
[354901181,1740803455578,-500.0,0.00040546,2]
[354901182,1740803455587,-2405.12,0.00040546,2]
[354901183,1740803455596,-500.0,0.00040546,2]
[354901184,1740803455606,-500.0,0.00040546,2]
[354901185,1740803455615,-500.0,0.00040546,2]
[354901186,1740803455624,-2028.31,0.00040546,2]
[354901187,1740803455634,-234.515658,0.00040546,14]
[354901188,1740803455643,-16043.12,0.00040546,2]
[354901189,1740803455652,-151.0,0.00040546,14]
[354901190,1740803455661,-590.158248,0.00040546,14]
[354901191,1740803455670,-234.515658,0.00040546,14]
[354901192,1740803455679,-2764.79,0.00040546,2]
[354901193,1740803455688,-590.158248,0.00040546,14]
[354901194,1740803455698,-500.0,0.00040546,2]
[354901195,1740803455707,-151.0,0.00040546,14]
[354901196,1740803455716,-290073.6,0.00040546,2]
[354901197,1740803455726,-500.0,0.00040546,2]
[354901198,1740803455742,-830.16,0.00040546,2]
[354901199,1740803455751,-231.384318,0.00040546,14]
[354901200,1740803455761,-3859.55,0.00040546,2]
[354901201,1740803455772,-500.0,0.00040546,2]
[354901202,1740803455781,-554.53,0.00040546,2]
[354901203,1740803455790,-231.384318,0.00040546,14]
[354901204,1740803455799,-500.0,0.00040546,2]
[354901205,1740803455809,-500.0,0.00040546,2]
[354901206,1740803455818,-500.0,0.00040546,2]
[354901207,1740803455827,-500.0,0.00040546,2]
[354901208,1740803455837,-5651.63,0.00040546,2]
[354901209,1740803455846,-500.0,0.00040546,2]
[354901210,1740803455855,-2548.47,0.00040546,2]
[354901211,1740803455864,-500.0,0.00040546,2]
[354901212,1740803455873,-2901.34,0.00040546,2]
[354901213,1740803455883,-819.43,0.00040546,2]
[354901214,1740803455892,-539.35,0.00040546,2]
[354901215,1740803455901,-500.0,0.00040546,2]
[354901216,1740803455912,-646.69,0.00040546,2]
[354901217,1740803455922,-500.0,0.00040546,2]
[354901218,1740803455933,-500.0,0.00040546,2]
[354901219,1740803455944,-7708.48,0.00040546,2]
[354901220,1740803455955,-500.0,0.00040546,2]
[354901221,1740803455964,-500.0,0.00040546,2]